fUST/lending_fUST_20240915
["ID","MTS","AMOUNT","RATE_DAILY","PERIOD"]
[338230732,1726400950127,-300.0,0.00024601,2]
[338230733,1726400950150,-300.0,0.00024601,2]
[338230734,1726400950173,-24630.30148018,0.00024602,2]
[338230735,1726400951422,-259.69851982,0.00024602,2]
[338230751,1726401032220,-1061.71490743,0.00025141,2]
[338230752,1726401032230,-171.298788,0.00025241,2]
[338230754,1726401032241,-171.298788,0.00025284,2]
[338230755,1726401032251,-171.298788,0.00025326,2]
[338230757,1726401032260,-171.298788,0.00025368,2]
[338230758,1726401032269,-2824.662736,0.00025548,2]
[338230759,1726401032278,-191.675092,0.00025749,2]
[338230760,1726401032288,-3266.83,0.00025802,2]
[338230761,1726401032297,-191.675092,0.0002582,2]
[338230762,1726401032306,-191.675092,0.0002589,2]
[338230763,1726401032315,-233.33635743,0.00025961,2]
[338230764,1726401032325,-191.675092,0.00025961,2]
[338230765,1726401032335,-191.675092,0.00026032,2]
[338230766,1726401032344,-191.675092,0.00026102,2]
[338230767,1726401032353,-162.15698101,0.00026173,2]
[338230768,1726401032365,-29.51811099,0.00026173,2]
[338230769,1726401032375,-191.675092,0.00026243,2]
[338230770,1726401032383,-171.298789,0.00026285,2]
[338230771,1726401032394,-171.298789,0.00026307,2]
[338230772,1726401032403,-191.675092,0.00026314,2]
[338230773,1726401032412,-171.298789,0.00026329,2]
[338230774,1726401032422,-171.298789,0.00026351,2]
[338230775,1726401032431,-171.298789,0.00026373,2]
[338230776,1726401032440,-300.0,0.00026383,2]
[338230777,1726401032450,-300.0,0.00026384,2]
[338230778,1726401032459,-191.675092,0.00026385,2]
[338230779,1726401032468,-171.298789,0.00026395,2]
[338230780,1726401032477,-171.298789,0.00026417,2]
[338230781,1726401032487,-191.675092,0.00026455,2]
[338230782,1726401032496,-191.675092,0.00026526,2]
[338230783,1726401032505,-191.675092,0.00026597,2]
[338230784,1726401032514,-191.675092,0.00026667,2]
[338230785,1726401032523,-191.675092,0.00026738,2]
[338230786,1726401032532,-191.675092,0.00026808,2]
[338230787,1726401032541,-191.675092,0.00026879,2]
[338230788,1726401032550,-191.675092,0.0002695,2]
[338230789,1726401032559,-187.16,0.00027,15]
[338230790,1726401032567,-191.675092,0.0002702,2]
[338230791,1726401032578,-191.675092,0.00027091,2]
[338230792,1726401032588,-481.66220786,0.00027277,2]
[338230793,1726401032597,-481.66220786,0.00027282,2]
[338230794,1726401032606,-266.56370954,0.00027287,2]
[338230795,1726401032650,-215.09849832,0.00027287,2]
[338230796,1726401032660,-481.66220786,0.00027292,2]
[338230797,1726401032669,-1239.92879999,0.00027297,2]
[338230798,1726401032679,-202.48077168,0.00027297,7]
[338230799,1726401032688,-202.98,0.00027297,7]
[338230800,1726401032698,-162.13461734,0.00027297,7]
[338230801,1726401032708,-162.13461734,0.00027297,7]
[338230802,1726401032718,-162.13461734,0.00027297,7]
[338230803,1726401032727,-162.13461734,0.00027297,7]
[338230804,1726401032737,-162.13461734,0.00027297,7]
[338230805,1726401032747,-143.04781796,0.00027297,7]
[338230808,1726401038331,-19.08679938,0.00027297,7]
[338230809,1726401038343,-162.13461734,0.00027297,7]
[338230810,1726401038355,-162.13461734,0.00027297,7]
[338230811,1726401038365,-162.13461734,0.00027297,7]
[338230812,1726401038377,-162.63,0.00027297,7]
[338230813,1726401038387,-155.62114513,0.00027297,7]
[338230814,1726401038399,-155.62114513,0.00027297,7]
[338230815,1726401038409,-155.62114513,0.00027297,7]
[338230816,1726401038420,-155.62114513,0.00027297,7]
[338230817,1726401038431,-156.12,0.00027297,7]
[338230818,1726401038441,-155.69614513,0.00027297,7]
[338230819,1726401038450,-155.69614513,0.00027297,7]
[338230820,1726401038460,-155.69614513,0.00027297,7]
[338230821,1726401038471,-155.69614513,0.00027297,7]
[338230822,1726401038481,-155.69614513,0.00027297,7]
[338230823,1726401038491,-155.69614513,0.00027297,7]
[338230824,1726401038502,-155.69614513,0.00027297,7]
[338230825,1726401038513,-155.69614513,0.00027297,7]
[338230826,1726401038524,-155.69614513,0.00027297,7]
[338230827,1726401038534,-155.69614513,0.00027297,7]
[338230828,1726401038546,-155.69614513,0.00027297,7]
[338230829,1726401038557,-155.69614513,0.00027297,7]
[338230830,1726401038567,-155.69614513,0.00027297,7]
[338230831,1726401038580,-155.69614513,0.00027297,7]
[338230832,1726401038590,-155.69614513,0.00027297,7]
[338230833,1726401038600,-155.69614513,0.00027297,7]
[338230834,1726401038610,-155.69614513,0.00027297,7]
[338230835,1726401038621,-155.69614513,0.00027297,7]
[338230836,1726401038631,-155.69614513,0.00027297,7]
[338230837,1726401038640,-156.19,0.00027297,7]
[338230838,1726401038650,-1733.99441814,0.00027297,2]
[338230839,1726401038659,-481.66220786,0.00027297,2]
[338230840,1726401038669,-35375.11432,0.00027367,4]
[338230841,1726401038680,-2451.258582,0.00027367,4]
[338230842,1726401038690,-215.58,0.00027367,3]
[338230843,1726401038699,-3584.61,0.00027367,3]
[338230844,1726401038711,-3456.37,0.00027367,3]
[338230845,1726401038721,-268.40520299,0.00027373,2]
[338230846,1726401038731,-500.0,0.00027373,2]
[338230847,1726401038742,-500.0,0.00027373,2]
[338230848,1726401038751,-17687.55716,0.00027376,4]
[338230849,1726401038761,-1225.629291,0.00027376,4]
[338230850,1726401038771,-123812.90012,0.00027377,4]
[338230851,1726401038780,-8579.405037,0.00027377,4]
[338230852,1726401038789,-11263.28,0.00027386,2]
[338230853,1726401038800,-53062.67148,0.00027387,4]
[338230854,1726401038810,-12256.29291,0.00027387,4]
[338230855,1726401038820,-150.01,0.00027396,2]
[338230856,1726401038831,-500.0,0.00027396,2]
[338230857,1726401038843,-188.7902033,0.00027396,2]
[338230858,1726401038853,-335.70904358,0.00027396,2]
[338230859,1726401038862,-301.88192538,0.00027396,2]
[338230860,1726401038871,-500.0,0.00027396,2]
[338230861,1726401038882,-500.0,0.00027396,2]
[338230862,1726401038895,-500.0,0.00027396,2]
[338230863,1726401038905,-500.0,0.00027396,2]
[338230864,1726401038916,-11376.84343258,0.00027397,5]
[338230865,1726401038925,-162.03703703,0.00027397,7]
[338230866,1726401038935,-523.04357253,0.00027397,5]
[338230867,1726401038945,-500.0,0.00027397,5]
[338230868,1726401038955,-640.58,0.00027397,5]
[338230869,1726401038964,-502.42341447,0.00027397,5]
[338230870,1726401038975,-518.4,0.00027397,5]
[338230871,1726401038986,-558.10980789,0.00027397,5]
[338230872,1726401038997,-500.0,0.00027397,5]
[338230873,1726401039007,-500.0,0.00027397,5]
[338230874,1726401039018,-501.98198763,0.00027397,5]
[338230875,1726401039027,-500.0,0.00027397,5]
[338230876,1726401039037,-500.0,0.00027397,5]
[338230877,1726401039047,-500.0,0.00027397,5]
[338230878,1726401039056,-500.0,0.00027397,5]
[338230879,1726401039066,-846.74,0.00027397,5]
[338230880,1726401039076,-500.0,0.00027397,5]
[338230881,1726401039086,-500.0,0.00027397,5]
[338230882,1726401039095,-1105.62,0.00027397,5]
[338230883,1726401039105,-542.74,0.00027397,5]
[338230884,1726401039114,-198.335959,0.00027397,7]
[338230885,1726401039124,-198.335959,0.00027397,7]
[338230886,1726401039134,-198.335959,0.00027397,7]
[338230887,1726401039145,-198.335959,0.00027397,7]
[338230888,1726401039155,-500.0,0.00027397,5]
[338230889,1726401039166,-500.0,0.00027397,5]
[338230890,1726401039176,-500.0,0.00027397,5]
[338230891,1726401039186,-198.335959,0.00027397,7]
[338230892,1726401039197,-198.335959,0.00027397,7]
[338230893,1726401039206,-198.335959,0.00027397,7]
[338230894,1726401039217,-198.335959,0.00027397,7]
[338230895,1726401039228,-500.0,0.00027397,5]
[338230896,1726401039237,-500.0,0.00027397,5]
[338230897,1726401039247,-500.0,0.00027397,5]
[338230898,1726401039257,-898.45,0.00027397,5]
[338230899,1726401039543,-500.0,0.00027397,5]
[338230900,1726401039569,-500.0,0.00027397,5]
[338230901,1726401039579,-500.0,0.00027397,5]
[338230902,1726401039588,-517.08,0.00027397,5]
[338230903,1726401039599,-500.0,0.00027397,5]
[338230904,1726401039608,-500.0,0.00027397,5]
[338230905,1726401039617,-945.82,0.00027397,5]
[338230906,1726401039626,-699.91,0.00027397,5]
[338230907,1726401039636,-500.0,0.00027397,5]
[338230908,1726401039645,-500.0,0.00027397,5]
[338230909,1726401039654,-602.97569984,0.00027397,5]
[338230910,1726401039664,-500.0,0.00027397,5]
[338230911,1726401039673,-151.0,0.00027397,7]
[338230912,1726401039683,-517.84,0.00027397,5]
[338230913,1726401039693,-151.0,0.00027397,7]
[338230914,1726401039702,-151.0,0.00027397,7]
[338230915,1726401039712,-151.0,0.00027397,7]
[338230916,1726401039722,-154.139077,0.00027397,7]
[338230917,1726401039732,-703.53,0.00027397,5]
[338230918,1726401039742,-1408.36,0.00027397,5]
[338230919,1726401039752,-500.0,0.00027397,5]
[338230920,1726401039761,-500.0,0.00027397,5]
[338230921,1726401039771,-638.37,0.00027397,5]
[338230922,1726401039780,-501.67795957,0.00027397,5]
[338230923,1726401039790,-557.76512627,0.00027397,5]
[338230924,1726401039799,-764.31,0.00027397,5]
[338230925,1726401039809,-500.0,0.00027397,5]
[338230926,1726401039819,-500.0,0.00027397,5]
[338230927,1726401039832,-500.0,0.00027397,5]
[338230928,1726401039845,-500.0,0.00027397,5]
[338230929,1726401039855,-500.0,0.00027397,5]
[338230930,1726401039865,-3306.64,0.00027397,5]
[338230931,1726401039875,-500.0,0.00027397,5]
[338230932,1726401039885,-312.20770483,0.00027397,5]
[338230933,1726401039896,-500.0,0.00027397,5]
[338230934,1726401039907,-500.0,0.00027397,5]
[338230935,1726401039917,-504.11422302,0.00027397,5]
[338230936,1726401039929,-500.0,0.00027397,5]
[338230937,1726401039939,-500.0,0.00027397,5]
[338230938,1726401039950,-752.09,0.00027397,5]
[338230939,1726401039963,-749.62,0.00027397,5]
[338230940,1726401039973,-500.0,0.00027397,5]
[338230941,1726401039984,-500.0,0.00027397,5]
[338230942,1726401039995,-500.0,0.00027397,5]
[338230944,1726401040007,-500.0,0.00027397,5]
[338230945,1726401040017,-151.0,0.00027397,7]
[338230946,1726401040027,-155.301988,0.00027397,7]
[338230947,1726401040036,-500.0,0.00027397,5]
[338230948,1726401040047,-501.29395002,0.00027397,5]
[338230949,1726401040057,-2377.8,0.00027397,5]
[338230950,1726401040069,-546.36,0.00027397,5]
[338230951,1726401040079,-500.0,0.00027397,5]
[338230952,1726401040089,-500.0,0.00027397,5]
[338230953,1726401040099,-500.0,0.00027397,5]
[338230954,1726401040111,-500.46989776,0.00027397,5]
[338230955,1726401040121,-502.1275904,0.00027397,2]
[338230956,1726401040132,-500.0,0.00027397,5]
[338230957,1726401040142,-500.0,0.00027397,5]
[338230958,1726401040159,-500.0,0.00027397,5]
[338230959,1726401040172,-500.0,0.00027397,5]
[338230960,1726401040182,-508.54925446,0.00027397,5]
[338230961,1726401040192,-1013.48,0.00027397,5]
[338230962,1726401040202,-856.26,0.00027397,5]
[338230963,1726401040213,-649.14,0.00027397,5]
[338230964,1726401040222,-500.0,0.00027397,5]
[338230965,1726401040233,-1079.28,0.00027397,5]
[338230966,1726401040245,-500.0,0.00027397,5]
[338230967,1726401040255,-686.55,0.00027397,5]
[338230968,1726401040265,-606.55,0.00027397,5]
[338230969,1726401040275,-649.95,0.00027397,5]
[338230970,1726401040285,-500.0,0.00027397,5]
[338230971,1726401040298,-500.0,0.00027397,5]
[338230972,1726401040308,-500.0,0.00027397,5]
[338230973,1726401040319,-928.31,0.00027397,5]
[338230974,1726401040331,-1363.7,0.00027397,2]
[338230975,1726401040341,-500.0,0.00027397,5]
[338230976,1726401040352,-1538.08,0.00027397,5]
[338230977,1726401040362,-500.0,0.00027397,5]
[338230978,1726401040372,-487.5146554,0.00027397,5]
[338230979,1726401040384,-500.0,0.00027397,5]
[338230980,1726401040395,-151.0,0.00027397,7]
[338230981,1726401040406,-151.0,0.00027397,7]
[338230982,1726401040416,-151.0,0.00027397,7]
[338230983,1726401040427,-151.0,0.00027397,7]
[338230984,1726401040437,-151.0,0.00027397,7]
[338230985,1726401040447,-151.0,0.00027397,7]
[338230986,1726401040457,-151.0,0.00027397,7]
[338230987,1726401040467,-151.0,0.00027397,7]
[338230988,1726401040477,-500.0,0.00027397,5]
[338230989,1726401040487,-500.0,0.00027397,5]
[338230990,1726401040498,-471.83191211,0.00027397,5]
[338230991,1726401040508,-500.0,0.00027397,5]
[338230992,1726401040518,-500.0,0.00027397,5]
[338230993,1726401040529,-500.0,0.00027397,5]
[338230994,1726401040540,-500.0,0.00027397,5]
[338230995,1726401040551,-500.0,0.00027397,5]
[338230996,1726401040560,-500.0,0.00027397,5]
[338230997,1726401040570,-582.73580579,0.00027397,5]
[338230998,1726401040579,-1125.15,0.00027397,5]
[338230999,1726401040589,-500.0,0.00027397,5]
[338231000,1726401040598,-153.064046,0.00027397,7]
[338231001,1726401040607,-500.0,0.00027397,5]
[338231002,1726401040616,-1092.44,0.00027397,5]
[338231003,1726401040626,-828.13,0.00027397,5]
[338231004,1726401040635,-500.0,0.00027397,5]
[338231005,1726401040644,-500.0,0.00027397,5]
[338231006,1726401040653,-500.0,0.00027397,5]
[338231007,1726401040662,-500.0,0.00027397,5]
[338231008,1726401040671,-500.0,0.00027397,5]
[338231009,1726401040682,-500.0,0.00027397,5]
[338231010,1726401040692,-564.64138051,0.00027397,5]
[338231011,1726401040701,-500.0,0.00027397,5]
[338231012,1726401040710,-250.0,0.00027397,5]
[338231013,1726401040720,-500.0,0.00027397,5]
[338231014,1726401040733,-688.19,0.00027397,5]
[338231015,1726401040744,-500.0,0.00027397,5]
[338231016,1726401040755,-500.0,0.00027397,5]
[338231017,1726401040765,-500.0,0.00027397,5]
[338231018,1726401040775,-151.0,0.00027397,7]
[338231019,1726401040785,-502.37321718,0.00027397,5]
[338231020,1726401040795,-151.0,0.00027397,7]
[338231021,1726401040806,-510.4137093,0.00027397,5]
[338231022,1726401040816,-151.0,0.00027397,7]
[338231023,1726401040826,-151.0,0.00027397,7]
[338231024,1726401040839,-151.0,0.00027397,7]
[338231025,1726401040850,-151.0,0.00027397,7]
[338231026,1726401040862,-3215.98,0.00027397,5]
[338231027,1726401040873,-500.0,0.00027397,5]
[338231028,1726401040886,-500.0,0.00027397,5]
[338231029,1726401040897,-3831.98,0.00027397,5]
[338231030,1726401040911,-500.0,0.00027397,5]
[338231031,1726401040922,-500.0,0.00027397,5]
[338231032,1726401040932,-500.0,0.00027397,5]
[338231033,1726401040942,-500.0,0.00027397,5]
[338231034,1726401040952,-721.14,0.00027397,5]
[338231035,1726401040961,-550.7562775,0.00027397,5]
[338231036,1726401040971,-500.0,0.00027397,5]
[338231037,1726401040981,-1541.29,0.00027397,5]
[338231038,1726401040990,-4006.67,0.00027397,5]
[338231039,1726401041000,-550.43,0.00027397,5]
[338231040,1726401041011,-500.0,0.00027397,2]
[338231041,1726401041022,-500.0,0.00027397,5]
[338231042,1726401041034,-500.0,0.00027397,5]
[338231043,1726401041046,-500.0,0.00027397,5]
[338231044,1726401041055,-500.0,0.00027397,5]
[338231045,1726401041065,-500.0,0.00027397,5]
[338231046,1726401041079,-500.0,0.00027397,5]
[338231047,1726401041088,-500.0,0.00027397,5]
[338231048,1726401041098,-500.0,0.00027397,5]
[338231049,1726401041108,-883.63,0.00027397,5]
[338231050,1726401041118,-389.81830597,0.00027397,5]
[338231051,1726401041128,-324.22201638,0.00027397,5]
[338231052,1726401041138,-500.0,0.00027397,5]
[338231053,1726401041148,-608.26896289,0.00027397,5]
[338231054,1726401041158,-500.0,0.00027397,5]
[338231055,1726401041168,-500.0,0.00027397,5]
[338231056,1726401041178,-500.0,0.00027397,5]
[338231057,1726401041187,-3258.73,0.00027397,5]
[338231058,1726401041197,-500.0,0.00027397,5]
[338231059,1726401041207,-500.0,0.00027397,5]
[338231060,1726401041218,-769.44,0.00027397,5]
[338231061,1726401041227,-500.0,0.00027397,5]
[338231062,1726401041237,-754.97,0.00027397,5]
[338231063,1726401041248,-500.0,0.00027397,5]
[338231064,1726401041258,-500.0,0.00027397,5]
[338231065,1726401041267,-500.0,0.00027397,5]
[338231066,1726401041277,-500.0,0.00027397,5]
[338231067,1726401041287,-580.74,0.00027397,5]
[338231068,1726401041297,-618.35,0.00027397,5]
[338231069,1726401041306,-500.0,0.00027397,5]
[338231070,1726401041315,-500.0,0.00027397,5]
[338231071,1726401041325,-500.0,0.00027397,5]
[338231072,1726401041335,-443.34087869,0.00027397,5]
[338231073,1726401041344,-500.0,0.00027397,5]
[338231074,1726401041354,-500.0,0.00027397,5]
[338231075,1726401041368,-796.97,0.00027397,5]
[338231076,1726401041379,-557.25,0.00027397,5]
[338231077,1726401041390,-504.40668889,0.00027397,5]
[338231078,1726401041400,-500.0,0.00027397,5]
[338231079,1726401041410,-500.0,0.00027397,5]
[338231080,1726401041419,-500.0,0.00027397,5]
[338231081,1726401041430,-500.0,0.00027397,5]
[338231082,1726401041441,-500.0,0.00027397,5]
[338231083,1726401041452,-869.92,0.00027397,5]
[338231084,1726401041464,-426.83474594,0.00027397,5]
[338231085,1726401041474,-500.0,0.00027397,5]
[338231086,1726401041484,-500.0,0.00027397,5]
[338231087,1726401041496,-500.0,0.00027397,5]
[338231088,1726401041508,-500.0,0.00027397,5]
[338231089,1726401041518,-500.0,0.00027397,5]
[338231090,1726401041527,-500.0,0.00027397,5]
[338231091,1726401041537,-501.19276869,0.00027397,5]
[338231092,1726401041547,-723.33,0.00027397,5]
[338231093,1726401041557,-618.69,0.00027397,5]
[338231094,1726401041567,-500.0,0.00027397,5]
[338231095,1726401041577,-500.0,0.00027397,5]
[338231096,1726401041587,-500.0,0.00027397,5]
[338231097,1726401041598,-500.0,0.00027397,5]
[338231098,1726401041608,-500.0,0.00027397,5]
[338231099,1726401041618,-500.0,0.00027397,5]
[338231100,1726401041627,-500.0,0.00027397,120]
[338231101,1726401041637,-500.0,0.00027397,5]
[338231102,1726401041647,-987.47,0.00027397,5]
[338231103,1726401041656,-500.0,0.00027397,5]
[338231104,1726401041666,-2025.13,0.00027397,5]
[338231105,1726401041675,-216.93654244,0.00027397,5]
[338231106,1726401041685,-1072.97,0.00027397,5]
[338231107,1726401041695,-500.0,0.00027397,5]
[338231108,1726401041705,-587.01530972,0.00027397,5]
[338231109,1726401041715,-500.0,0.00027397,5]
[338231110,1726401041725,-500.0,0.00027397,5]
[338231111,1726401041736,-500.0,0.00027397,5]
[338231112,1726401041748,-500.0,0.00027397,5]
[338231113,1726401041759,-500.0,0.00027397,5]
[338231114,1726401041770,-500.0,0.00027397,5]
[338231115,1726401041780,-500.0,0.00027397,5]
[338231116,1726401041791,-2016.34,0.00027397,5]
[338231117,1726401041801,-500.0,0.00027397,5]
[338231118,1726401041812,-500.0,0.00027397,5]
[338231119,1726401041824,-500.0,0.00027397,5]
[338231120,1726401041836,-500.0,0.00027397,5]
[338231121,1726401041847,-945.77,0.00027397,5]
[338231122,1726401041858,-500.0,0.00027397,5]
[338231123,1726401041867,-500.0,0.00027397,5]
[338231124,1726401041879,-333.87845105,0.00027397,5]
[338231125,1726401041891,-719.13,0.00027397,5]
[338231126,1726401041901,-1035.9,0.00027397,5]
[338231127,1726401041912,-500.0,0.00027397,5]
[338231128,1726401041924,-720.47,0.00027397,5]
[338231129,1726401041935,-500.0,0.00027397,5]
[338231130,1726401041946,-500.0,0.00027397,5]
[338231131,1726401041956,-500.0,0.00027397,5]
[338231132,1726401041968,-500.0,0.00027397,5]
[338231133,1726401041979,-500.0,0.00027397,5]
[338231134,1726401041988,-500.0,0.00027397,5]
[338231135,1726401041998,-500.0,0.00027397,5]
[338231136,1726401042008,-500.0,0.00027397,5]
[338231137,1726401042020,-500.0,0.00027397,5]
[338231138,1726401042031,-500.0,0.00027397,5]
[338231139,1726401042043,-500.0,0.00027397,5]
[338231140,1726401042054,-764.65,0.00027397,5]
[338231141,1726401042064,-500.0,0.00027397,5]
[338231142,1726401042075,-835.17,0.00027397,5]
[338231143,1726401042084,-1077.07,0.00027397,5]
[338231144,1726401042093,-589.39993438,0.00027397,5]
[338231145,1726401042102,-166.022313,0.00027397,7]
[338231146,1726401042112,-166.022313,0.00027397,7]
[338231147,1726401042123,-166.022313,0.00027397,7]
[338231148,1726401042134,-508.9849536,0.00027397,5]
[338231149,1726401042145,-166.022313,0.00027397,7]
[338231150,1726401042156,-166.022313,0.00027397,7]
[338231151,1726401042167,-166.022313,0.00027397,7]
[338231152,1726401042178,-500.0,0.00027397,5]
[338231153,1726401042187,-166.022313,0.00027397,7]
[338231154,1726401042198,-425.641314,0.00027397,7]
[338231155,1726401042207,-151.0,0.00027397,7]
[338231156,1726401042217,-166.022313,0.00027397,7]
[338231157,1726401042226,-425.641314,0.00027397,7]
[338231158,1726401042235,-151.0,0.00027397,7]
[338231159,1726401042244,-425.641314,0.00027397,7]
[338231160,1726401042255,-151.0,0.00027397,7]
[338231161,1726401042264,-425.641314,0.00027397,7]
[338231162,1726401042274,-151.0,0.00027397,7]
[338231163,1726401042283,-425.641314,0.00027397,7]
[338231164,1726401042293,-500.0,0.00027397,5]
[338231165,1726401042302,-166.022313,0.00027397,7]
[338231166,1726401042313,-151.0,0.00027397,7]
[338231167,1726401042324,-425.641314,0.00027397,7]
[338231168,1726401042336,-166.022313,0.00027397,7]
[338231169,1726401042348,-151.0,0.00027397,7]
[338231170,1726401042359,-425.641314,0.00027397,7]
[338231171,1726401042370,-166.022313,0.00027397,7]
[338231172,1726401042380,-151.0,0.00027397,7]
[338231173,1726401042391,-425.641314,0.00027397,7]
[338231174,1726401042402,-166.022313,0.00027397,7]
[338231175,1726401042415,-500.0,0.00027397,5]
[338231176,1726401042426,-166.022313,0.00027397,7]
[338231177,1726401042436,-166.022313,0.00027397,7]
[338231178,1726401042446,-166.022313,0.00027397,7]
[338231179,1726401042455,-166.022313,0.00027397,7]
[338231180,1726401042465,-512.49032164,0.00027397,5]
[338231181,1726401042474,-425.641314,0.00027397,7]
[338231182,1726401042484,-500.0,0.00027397,5]
[338231183,1726401042493,-425.641314,0.00027397,7]
[338231184,1726401042503,-425.641314,0.00027397,7]
[338231185,1726401042515,-425.641314,0.00027397,7]
[338231186,1726401042524,-425.641314,0.00027397,7]
[338231187,1726401042533,-425.641314,0.00027397,7]
[338231188,1726401042543,-425.641314,0.00027397,7]
[338231189,1726401042554,-425.641314,0.00027397,7]
[338231190,1726401042563,-500.0,0.00027397,5]
[338231191,1726401042573,-500.0,0.00027397,5]
[338231192,1726401042582,-500.0,0.00027397,5]
[338231193,1726401042591,-500.0,0.00027397,5]
[338231194,1726401042601,-151.0,0.00027397,7]
[338231195,1726401042610,-151.0,0.00027397,7]
[338231196,1726401042620,-151.0,0.00027397,7]
[338231197,1726401042629,-500.0,0.00027397,5]
[338231198,1726401042638,-151.0,0.00027397,7]
[338231199,1726401042648,-151.0,0.00027397,7]
[338231200,1726401042657,-151.0,0.00027397,7]
[338231201,1726401042668,-151.0,0.00027397,7]
[338231202,1726401042679,-221.59091,0.00027397,7]
[338231203,1726401042690,-1077.11,0.00027397,5]
[338231204,1726401042701,-500.0,0.00027397,5]
[338231205,1726401042712,-500.0,0.00027397,5]
[338231206,1726401042732,-1338.76,0.00027397,5]
[338231207,1726401042742,-500.0,0.00027397,5]
[338231208,1726401042752,-500.0,0.00027397,5]
[338231209,1726401042763,-500.0,0.00027397,5]
[338231210,1726401042772,-500.0,0.00027397,5]
[338231211,1726401042782,-500.0,0.00027397,5]
[338231212,1726401042792,-2611.9,0.00027397,5]
[338231213,1726401042803,-500.0,0.00027397,5]
[338231214,1726401042815,-500.0,0.00027397,5]
[338231215,1726401042825,-500.0,0.00027397,5]
[338231216,1726401042835,-151.0,0.00027397,7]
[338231218,1726401042847,-151.0,0.00027397,7]
[338231220,1726401042857,-500.0,0.00027397,5]
[338231221,1726401042867,-151.0,0.00027397,7]
[338231222,1726401042878,-151.0,0.00027397,7]
[338231224,1726401042888,-151.0,0.00027397,7]
[338231227,1726401042898,-151.0,0.00027397,7]
[338231230,1726401042909,-496.25644243,0.00027397,5]
[338231234,1726401042920,-151.0,0.00027397,7]
[338231237,1726401042931,-500.0,0.00027397,5]
[338231240,1726401042942,-696.38,0.00027397,5]
[338231242,1726401042952,-1521.36,0.00027397,5]
[338231244,1726401042963,-227.88077486,0.00027397,5]
[338231246,1726401042973,-399.6461922,0.00027397,5]
[338231248,1726401042984,-500.0,0.00027397,5]
[338231250,1726401042994,-500.0,0.00027397,5]
[338231252,1726401043005,-546.27,0.00027397,5]
[338231254,1726401043014,-929.89,0.00027397,5]
[338231255,1726401043024,-500.0,0.00027397,5]
[338231256,1726401043033,-151.0,0.00027397,7]
[338231257,1726401043044,-151.0,0.00027397,7]
[338231258,1726401043056,-151.0,0.00027397,7]
[338231259,1726401043066,-151.0,0.00027397,7]
[338231260,1726401043075,-151.0,0.00027397,7]
[338231261,1726401043084,-500.0,0.00027397,5]
[338231262,1726401043094,-151.0,0.00027397,7]
[338231263,1726401043104,-151.0,0.00027397,7]
[338231264,1726401043114,-151.0,0.00027397,7]
[338231265,1726401043123,-151.0,0.00027397,7]
[338231266,1726401043133,-151.0,0.00027397,7]
[338231267,1726401043143,-151.0,0.00027397,7]
[338231268,1726401043154,-500.0,0.00027397,5]
[338231269,1726401043166,-151.0,0.00027397,7]
[338231270,1726401043178,-236.475157,0.00027397,7]
[338231271,1726401043188,-500.0,0.00027397,5]
[338231272,1726401043200,-634.28,0.00027397,2]